fUSD/lending_fUSD_20250204
["ID","MTS","AMOUNT","RATE_DAILY","PERIOD"]
[351651581,1738685442807,-1504.45448413,0.0001045,2]
[351651582,1738685442816,-500.0,0.00010565,2]
[351651583,1738685442826,-500.0,0.00010565,2]
[351651584,1738685442836,-530.96559315,0.00010565,2]
[351651585,1738685442847,-500.0,0.00010565,2]
[351651586,1738685442857,-500.0,0.00010565,2]
[351651587,1738685442865,-500.0,0.00010565,2]
[351651588,1738685442874,-712.38,0.00010565,2]
[351651589,1738685442883,-500.0,0.00010565,2]
[351651590,1738685442892,-500.0,0.00010565,2]
[351651591,1738685442902,-500.0,0.00010565,2]
[351651592,1738685442912,-500.0,0.00010565,2]
[351651593,1738685442921,-500.0,0.00010566,2]
[351651594,1738685442934,-500.0,0.00010566,2]
[351651595,1738685442944,-154.837627,0.00010566,2]
[351651596,1738685442953,-152.933321,0.00010566,2]
[351651597,1738685442963,-500.0,0.00010566,2]
[351651598,1738685442972,-514.5408667,0.00010566,2]
[351651599,1738685442982,-500.0,0.00010566,2]
[351651600,1738685442992,-500.0,0.00010566,2]
[351651601,1738685443002,-500.0,0.00010566,2]
[351651602,1738685443012,-500.0,0.00010566,2]
[351651603,1738685443022,-500.0,0.00010566,2]
[351651604,1738685443032,-500.0,0.00010566,2]
[351651605,1738685443043,-500.0,0.00010566,2]
[351651606,1738685443053,-500.0,0.00010566,2]
[351651607,1738685443062,-500.0,0.00010566,2]
[351651608,1738685443074,-1173.15,0.00010566,2]
[351651609,1738685443084,-500.0,0.00010566,2]
[351651610,1738685443093,-500.0,0.00010566,2]
[351651611,1738685443103,-500.0,0.00010566,2]
[351651613,1738685443113,-500.0,0.00010566,2]
[351651614,1738685443124,-500.0,0.00010566,2]
[351651615,1738685443133,-500.0,0.00010566,2]
[351651616,1738685443144,-500.0,0.00010566,2]
[351651617,1738685443154,-500.0,0.00010566,2]
[351651618,1738685443164,-500.0,0.00010566,2]
[351651619,1738685443175,-663.96,0.00010566,2]
[351651621,1738685443185,-500.0,0.00010566,2]
[351651623,1738685443195,-500.0,0.00010566,2]
[351651625,1738685443206,-500.0,0.00010566,2]
[351651627,1738685443215,-500.0,0.00010566,2]
[351651629,1738685443224,-500.0,0.00010566,2]
[351651631,1738685443234,-500.0,0.00010566,2]
[351651633,1738685443243,-500.0,0.00010566,2]
[351651635,1738685443252,-500.0,0.00010566,2]
[351651638,1738685443262,-500.0,0.00010566,2]
[351651641,1738685443271,-500.0,0.00010566,2]
[351651644,1738685443281,-570.54,0.00010566,2]
[351651646,1738685443292,-612.43,0.00010566,2]
[351651649,1738685443303,-527.86470493,0.00010566,2]
[351651651,1738685443313,-500.0,0.00010566,2]
[351651653,1738685443322,-500.0,0.00010566,2]
[351651656,1738685443331,-500.0,0.00010566,2]
[351651659,1738685443340,-500.0,0.00010566,2]
[351651662,1738685443350,-650.21,0.00010566,2]
[351651664,1738685443359,-718.12,0.00010566,2]
[351651666,1738685443368,-585.02,0.00010566,2]
[351651668,1738685443378,-500.0,0.00010566,2]
[351651670,1738685443387,-500.0,0.00010566,2]
[351651672,1738685443397,-500.0,0.00010566,2]
[351651674,1738685443407,-500.0,0.00010566,2]
[351651676,1738685443416,-500.0,0.00010566,2]
[351651678,1738685443428,-553.29,0.00010566,2]
[351651680,1738685443437,-500.0,0.00010566,2]
[351651681,1738685443447,-1329.16,0.00010566,2]
[351651683,1738685443457,-500.0,0.00010566,2]
[351651686,1738685443467,-500.0,0.00010566,2]
[351651688,1738685443477,-649.45,0.00010566,2]
[351651690,1738685443486,-500.0,0.00010566,2]
[351651691,1738685443495,-500.0,0.00010566,2]
[351651693,1738685443505,-789.07,0.00010566,2]
[351651695,1738685443515,-500.0,0.00010566,2]
[351651697,1738685443525,-500.0,0.00010566,2]
[351651700,1738685443536,-891.45,0.00010566,2]
[351651701,1738685443547,-500.0,0.00010566,2]
[351651703,1738685443557,-500.0,0.00010566,2]
[351651706,1738685443567,-500.0,0.00010566,2]
[351651708,1738685443577,-500.0,0.00010566,2]
[351651710,1738685443587,-74.53260868,0.00010567,2]
[351651712,1738685443606,-425.46739132,0.00010567,2]
[351651713,1738685443616,-338.62684764,0.00010567,2]
[351651723,1738685443710,-161.37315236,0.00010567,2]
[351651725,1738685443720,-500.0,0.00010567,2]
[351651726,1738685443729,-331.61918908,0.00010567,2]
[351651727,1738685443741,-168.38081092,0.00010567,2]
[351651728,1738685443751,-556.53,0.00010567,2]
[351651729,1738685443761,-500.0,0.00010567,2]
[351651730,1738685443771,-517.69,0.00010567,2]
[351651731,1738685443782,-379.63,0.00010567,2]
[351651732,1738685443791,-500.0,0.00010567,2]
[351651733,1738685443801,-500.0,0.00010567,2]
[351651734,1738685443811,-150.0,0.00010568,2]
[351651735,1738685443822,-1504.45448413,0.00010582,2]
[351651736,1738685443831,-150.66,0.00010657,2]
[351651737,1738685443841,-500.0,0.00010702,2]
[351651738,1738685443852,-500.0,0.00010702,2]
[351651740,1738685443862,-500.0,0.00010702,2]
[351651742,1738685443871,-500.0,0.00010702,2]
[351651744,1738685443882,-563.10572957,0.00010702,2]
[351651746,1738685443894,-149.27427043,0.00010702,2]
[351651748,1738685443904,-226.10073036,0.00010702,2]
[351651750,1738685443916,-273.89926964,0.00010702,2]
[351651752,1738685443925,-500.0,0.00010702,2]
[351651754,1738685443935,-500.0,0.00010702,2]
[351651756,1738685443944,-500.0,0.00010702,2]
[351651758,1738685443954,-500.0,0.00010703,2]
[351651760,1738685443964,-500.0,0.00010703,2]
[351651762,1738685443973,-154.837627,0.00010703,2]
[351651764,1738685443984,-152.933321,0.00010703,2]
[351651766,1738685443993,-536.08907067,0.00010703,2]
[351651767,1738685444003,-500.0,0.00010703,2]
[351651769,1738685444013,-94.54073459,0.00010703,2]
[351651863,1738685445764,-500.0,9.881e-05,2]
[351651864,1738685445774,-500.0,0.00010018,2]
[351651865,1738685445783,-500.0,0.00010155,2]
[351651866,1738685445793,-334.40676025,0.00010292,2]
[351651867,1738685445803,-405.45926541,0.00010703,2]
[351651868,1738685445813,-554.57400008,0.00010703,2]
[351651869,1738685445822,-500.0,0.00010703,2]
[351651870,1738685445832,-500.0,0.00010703,2]
[351651871,1738685445841,-500.0,0.00010703,2]
[351651872,1738685445852,-500.0,0.00010703,2]
[351651873,1738685445861,-249.07568415,0.00010703,2]
[351651874,1738685445874,-924.07431585,0.00010703,2]
[351651875,1738685445884,-500.0,0.00010703,2]
[351651876,1738685445895,-500.0,0.00010703,2]
[351651877,1738685445905,-500.0,0.00010703,2]
[351651878,1738685445915,-500.0,0.00010703,2]
[351651879,1738685445925,-500.0,0.00010703,2]
[351651880,1738685445935,-500.0,0.00010703,2]
[351651881,1738685445944,-500.0,0.00010703,2]
[351651882,1738685445954,-500.0,0.00010703,2]
[351651883,1738685445964,-500.0,0.00010703,2]
[351651884,1738685445974,-663.96,0.00010703,2]
[351651885,1738685445984,-500.0,0.00010703,2]
[351651886,1738685445994,-500.0,0.00010703,2]
[351651887,1738685446003,-492.32939321,0.00010703,2]
[351651888,1738685446034,-7.67060679,0.00010703,2]
[351651889,1738685446044,-500.0,0.00010703,2]
[351651890,1738685446054,-500.0,0.00010703,2]
[351651891,1738685446063,-500.0,0.00010703,2]
[351651892,1738685446072,-500.0,0.00010703,2]
[351651893,1738685446082,-500.0,0.00010703,2]
[351651894,1738685446092,-500.0,0.00010703,2]
[351651895,1738685446102,-500.0,0.00010703,2]
[351651896,1738685446112,-570.54,0.00010703,2]
[351651897,1738685446122,-612.43,0.00010703,2]
[351651898,1738685446132,-500.0,0.00010703,2]
[351651899,1738685446142,-500.0,0.00010703,2]
[351651900,1738685446152,-500.0,0.00010703,2]
[351651901,1738685446162,-500.0,0.00010703,2]
[351651902,1738685446171,-650.21,0.00010703,2]
[351651903,1738685446183,-718.12,0.00010703,2]
[351651904,1738685446193,-585.02,0.00010703,2]
[351651905,1738685446203,-500.0,0.00010703,2]
[351651906,1738685446212,-500.0,0.00010703,2]
[351651907,1738685446222,-500.0,0.00010703,2]
[351651908,1738685446234,-500.0,0.00010703,2]
[351651909,1738685446244,-500.0,0.00010703,2]
[351651910,1738685446253,-553.29,0.00010703,2]
[351651911,1738685446263,-500.0,0.00010703,2]
[351651912,1738685446274,-1329.16,0.00010703,2]
[351651913,1738685446284,-500.0,0.00010703,2]
[351651914,1738685446294,-500.0,0.00010703,2]
[351651915,1738685446304,-649.45,0.00010703,2]
[351651916,1738685446313,-500.0,0.00010703,2]
[351651917,1738685446323,-500.0,0.00010703,2]
[351651918,1738685446332,-789.07,0.00010703,2]
[351651919,1738685446342,-500.0,0.00010703,2]
[351651920,1738685446352,-500.0,0.00010703,2]
[351651921,1738685446362,-891.45,0.00010703,2]
[351651922,1738685446371,-500.0,0.00010703,2]
[351651923,1738685446381,-500.0,0.00010703,2]
[351651924,1738685446391,-500.0,0.00010703,2]
[351651925,1738685446400,-500.0,0.00010703,2]
[351651926,1738685446412,-500.0,0.00010704,2]
[351651927,1738685446422,-500.0,0.00010704,2]
[351651928,1738685446433,-500.0,0.00010704,2]
[351651929,1738685446443,-500.0,0.00010704,2]
[351651930,1738685446452,-500.0,0.00010704,2]
[351651931,1738685446462,-517.69,0.00010704,2]
[351651932,1738685446472,-500.0,0.00010704,2]
[351651933,1738685446482,-500.0,0.00010704,2]
[351651934,1738685446493,-1504.45448413,0.00010714,2]
[351651935,1738685446503,-500.0,0.00010839,2]
[351651936,1738685446513,-500.0,0.00010839,2]
[351651937,1738685446523,-500.0,0.00010839,2]
[351651938,1738685446533,-500.0,0.00010839,2]
[351651939,1738685446542,-712.38,0.00010839,2]
[351651940,1738685446552,-500.0,0.00010839,2]
[351651941,1738685446562,-500.0,0.00010839,2]
[351651942,1738685446572,-500.0,0.00010839,2]
[351651943,1738685446582,-500.0,0.00010839,2]
[351651944,1738685446593,-500.0,0.0001084,2]
[351651945,1738685446606,-500.0,0.0001084,2]
[351651946,1738685446617,-154.837627,0.0001084,2]
[351651947,1738685446627,-152.933321,0.0001084,2]
[351651948,1738685446637,-500.0,0.0001084,2]
[351651949,1738685446647,-500.0,0.0001084,2]
[351651950,1738685446658,-500.0,0.0001084,2]
[351651951,1738685446668,-500.0,0.0001084,2]
[351651952,1738685446679,-500.0,0.0001084,2]
[351651953,1738685446690,-500.0,0.0001084,2]
[351651954,1738685446700,-1173.15,0.0001084,2]
[351651955,1738685446711,-500.0,0.0001084,2]
[351651956,1738685446721,-500.0,0.0001084,2]
[351651957,1738685446731,-500.0,0.0001084,2]
[351651958,1738685446741,-500.0,0.0001084,2]
[351651959,1738685446751,-500.0,0.0001084,2]
[351651960,1738685446761,-500.0,0.0001084,2]
[351651961,1738685446772,-500.0,0.0001084,2]
[351651962,1738685446783,-500.0,0.0001084,2]
[351651963,1738685446794,-637.96835701,0.0001084,2]
[351651964,1738685446803,-663.96,0.0001084,2]
[351651965,1738685446814,-500.0,0.0001084,2]
[351651966,1738685446824,-458.94403164,0.0001084,2]
[351651967,1738685446834,-500.0,0.0001084,2]
[351651968,1738685446844,-500.0,0.0001084,2]
[351651969,1738685446853,-500.0,0.0001084,2]
[351651970,1738685446863,-500.0,0.0001084,2]
[351651971,1738685446873,-500.0,0.0001084,2]
[351651972,1738685446884,-500.0,0.0001084,2]
[351651973,1738685446894,-500.0,0.0001084,2]
[351651974,1738685446904,-500.0,0.0001084,2]
[351651975,1738685446914,-570.54,0.0001084,2]
[351651976,1738685446925,-612.43,0.0001084,2]
[351651977,1738685446937,-500.0,0.0001084,2]
[351651978,1738685446946,-500.0,0.0001084,2]
[351651979,1738685446955,-500.0,0.0001084,2]
[351651980,1738685446965,-179.30157243,0.0001084,2]
[351651981,1738685446978,-288.41950785,0.0001084,2]
[351651996,1738686631894,-996.94,8.219e-05,2]
[351651997,1738686631949,-434.72,8.219e-05,2]
[351651998,1738686631960,-254.930664,8.655e-05,2]
[351651999,1738686631969,-556.6544,8.699e-05,2]
[351652000,1738686631979,-114.81000392,8.699e-05,2]
[351652002,1738686632222,-43.46839608,8.699e-05,2]
[351652004,1738686632232,-300.0,8.799e-05,2]
[351652005,1738686632241,-3941.17886046,8.8e-05,2]
[351652006,1738686632253,-5727.228,8.8e-05,2]
[351652007,1738686632265,-5695.5,8.8e-05,2]
[351652019,1738686637838,-99789.00000003,8.8e-05,2]
[351652020,1738686637895,-15804.80462927,8.8e-05,2]
[351652021,1738686637907,-1799.94722555,8.8e-05,2]
[351652022,1738686637951,-484.00028657,8.8e-05,2]
[351652023,1738686637963,-2640.32545847,8.8e-05,2]
[351652024,1738686637975,-3380.81818724,8.8e-05,2]
[351652037,1738686639862,-279.50500001,8.8e-05,2]
[351652065,1738686642883,-22046.62866018,8.8e-05,2]
[351652077,1738686646048,-1022.1,8.8e-05,2]
[351652078,1738686646061,-4340.13563117,8.8e-05,2]
[351652079,1738686646103,-2137.61028918,8.8e-05,2]
[351652080,1738686646113,-19945.603,8.836e-05,2]
[351652081,1738686646123,-24738.0684,8.836e-05,2]
[351652082,1738686646133,-5000.0,8.973e-05,2]
[351652083,1738686646145,-15822.74,9.009e-05,2]
[351652084,1738686646155,-500.0,9.041e-05,2]
[351652085,1738686646165,-224.82,9.232e-05,2]
[351652086,1738686646174,-1000.0,9.341e-05,2]
[351652087,1738686646183,-517.16,9.407e-05,2]
[351652088,1738686646192,-500.0,9.561e-05,2]
[351652089,1738686646202,-500.0,9.561e-05,2]
[351652090,1738686646211,-500.0,9.561e-05,2]
[351652091,1738686646220,-511.74326405,9.561e-05,2]
[351652092,1738686646229,-500.0,9.561e-05,2]
[351652093,1738686646238,-500.0,9.561e-05,2]
[351652094,1738686646247,-553.21,9.561e-05,2]
[351652095,1738686646257,-500.0,9.561e-05,2]
[351652096,1738686646266,-500.0,9.561e-05,2]
[351652097,1738686646274,-500.0,9.561e-05,2]
[351652098,1738686646285,-500.0,9.561e-05,2]
[351652099,1738686646294,-500.0,9.561e-05,2]
[351652100,1738686646303,-508.73769559,9.561e-05,2]
[351652101,1738686646312,-500.0,9.561e-05,2]
[351652102,1738686646322,-500.0,9.561e-05,2]
[351652103,1738686646331,-500.0,9.561e-05,2]
[351652104,1738686646341,-500.0,9.561e-05,2]
[351652105,1738686646351,-500.0,9.561e-05,2]
[351652106,1738686646361,-500.0,9.561e-05,2]
[351652107,1738686646371,-500.0,9.561e-05,2]
[351652109,1738686646380,-500.0,9.561e-05,2]
[351652111,1738686646390,-500.0,9.561e-05,2]
[351652113,1738686646399,-500.0,9.561e-05,2]
[351652115,1738686646409,-500.0,9.562e-05,2]
[351652117,1738686646419,-29999.99,9.67e-05,2]
[351652119,1738686646428,-420.0,9.679e-05,2]
[351652121,1738686646438,-500.0,9.698e-05,2]
[351652122,1738686646448,-500.0,9.698e-05,2]
[351652123,1738686646458,-500.0,9.698e-05,2]
[351652124,1738686646468,-500.0,9.698e-05,2]
[351652125,1738686646477,-500.0,9.698e-05,2]
[351652126,1738686646487,-500.0,9.698e-05,2]
[351652127,1738686646497,-500.0,9.698e-05,2]
[351652128,1738686646505,-500.0,9.698e-05,2]
[351652129,1738686646515,-500.0,9.698e-05,2]
[351652130,1738686646524,-500.0,9.698e-05,2]
[351652131,1738686646535,-500.0,9.698e-05,2]
[351652132,1738686646545,-500.0,9.698e-05,2]
[351652133,1738686646554,-500.0,9.698e-05,2]
[351652134,1738686646564,-309.85,9.807e-05,2]
[351652135,1738686646574,-500.0,9.835e-05,2]
[351652136,1738686646584,-500.0,9.835e-05,2]
[351652137,1738686646593,-500.0,9.835e-05,2]
[351652138,1738686646603,-500.0,9.879e-05,2]
[351652139,1738686646613,-261.57660175,9.879e-05,2]
[351652140,1738686646623,-500.0,9.879e-05,2]
[351652141,1738686646633,-185.35663875,9.879e-05,2]
[351652142,1738686646643,-500.0,9.88e-05,2]
[351652143,1738686646653,-500.0,9.88e-05,2]
[351652144,1738686646663,-500.0,9.88e-05,2]
[351652145,1738686646673,-500.0,9.88e-05,2]
[351652146,1738686646683,-500.0,9.88e-05,2]
[351652147,1738686646693,-500.0,9.88e-05,2]
[351652148,1738686646703,-500.0,9.88e-05,2]
[351652149,1738686646712,-500.0,9.88e-05,2]
[351652150,1738686646722,-500.0,9.88e-05,2]
[351652151,1738686646731,-500.0,9.88e-05,2]
[351652152,1738686646741,-500.0,9.88e-05,2]
[351652153,1738686646751,-500.0,9.88e-05,2]
[351652154,1738686646760,-529.5,9.88e-05,2]
[351652155,1738686646769,-500.0,9.88e-05,2]
[351652156,1738686646780,-500.0,9.88e-05,2]
[351652157,1738686646790,-500.0,9.88e-05,2]
[351652158,1738686646800,-500.0,9.88e-05,2]
[351652159,1738686646809,-865.3,9.88e-05,2]
[351652160,1738686646819,-500.0,9.88e-05,2]
[351652161,1738686646829,-500.0,9.88e-05,2]
[351652162,1738686646840,-500.0,9.88e-05,2]
[351652163,1738686646849,-500.0,9.88e-05,2]
[351652164,1738686646859,-500.0,9.88e-05,2]
[351652165,1738686646869,-652.28,9.88e-05,2]
[351652166,1738686646879,-500.0,9.88e-05,2]
[351652167,1738686646888,-500.0,9.88e-05,2]
[351652168,1738686646898,-500.0,9.88e-05,2]
[351652169,1738686646907,-500.0,9.88e-05,2]
[351652170,1738686646917,-500.0,9.88e-05,2]
[351652171,1738686646926,-500.0,9.88e-05,2]
[351652172,1738686646935,-500.0,9.88e-05,2]
[351652173,1738686646945,-500.0,9.88e-05,2]
[351652174,1738686646954,-500.0,9.88e-05,2]
[351652175,1738686646964,-500.0,9.88e-05,2]
[351652176,1738686646974,-155.066805,9.88e-05,2]
[351652177,1738686646983,-500.0,9.88e-05,2]
[351652178,1738686646994,-500.0,9.88e-05,2]
[351652179,1738686647005,-500.0,9.88e-05,2]
[351652180,1738686647016,-500.0,9.88e-05,2]
[351652181,1738686647027,-500.0,9.88e-05,2]
[351652182,1738686647038,-500.0,9.88e-05,2]
[351652183,1738686647049,-500.0,9.88e-05,2]
[351652184,1738686647059,-500.0,9.88e-05,2]
[351652185,1738686647069,-500.0,9.88e-05,2]
[351652186,1738686647081,-500.0,9.88e-05,2]
[351652187,1738686647090,-500.0,9.88e-05,2]
[351652188,1738686647100,-500.0,9.88e-05,2]
[351652189,1738686647110,-500.0,9.881e-05,2]
[351652190,1738686647120,-500.0,9.881e-05,2]
[351652191,1738686647129,-510.20249349,9.881e-05,2]
[351652192,1738686647139,-500.0,9.881e-05,2]
[351652193,1738686647148,-471.09447979,9.881e-05,2]
[351652194,1738686647158,-500.0,9.881e-05,2]
[351652195,1738686647167,-500.0,9.881e-05,2]
[351652196,1738686647177,-500.0,9.881e-05,2]
[351652197,1738686647186,-500.0,9.881e-05,2]
[351652198,1738686647197,-500.0,9.881e-05,2]
[351652199,1738686647207,-500.0,9.881e-05,2]
[351652200,1738686647217,-500.0,9.881e-05,2]
[351652201,1738686647226,-500.0,9.881e-05,2]
[351652202,1738686647235,-500.0,9.881e-05,2]
[351652203,1738686647244,-500.0,9.881e-05,2]
[351652204,1738686647254,-520.83,9.881e-05,2]
[351652205,1738686647263,-500.0,9.881e-05,2]
[351652206,1738686647273,-636.47,9.881e-05,2]
[351652207,1738686647281,-500.0,9.881e-05,2]
[351652208,1738686647292,-500.0,9.881e-05,2]
[351652209,1738686647303,-500.0,9.881e-05,2]
[351652210,1738686647313,-500.0,9.881e-05,2]
[351652211,1738686647323,-500.0,9.881e-05,2]
[351652212,1738686647336,-500.0,9.881e-05,2]
[351652213,1738686647346,-500.0,9.881e-05,2]
[351652214,1738686647357,-500.0,9.881e-05,2]
[351652215,1738686647367,-493.47510744,9.881e-05,2]
[351652216,1738686647376,-500.0,9.881e-05,2]
[351652217,1738686647385,-500.0,9.881e-05,2]
[351652218,1738686647393,-500.0,9.881e-05,2]
[351652219,1738686647402,-500.0,9.881e-05,2]
[351652220,1738686647411,-500.0,9.881e-05,2]
[351652221,1738686647420,-500.0,9.881e-05,2]
[351652222,1738686647430,-500.0,9.881e-05,2]
[351652223,1738686647440,-500.0,9.881e-05,2]
[351652224,1738686647450,-500.0,9.881e-05,2]
[351652225,1738686647460,-500.0,9.881e-05,2]
[351652226,1738686647472,-500.0,9.881e-05,2]
[351652227,1738686647481,-500.0,9.881e-05,2]
[351652228,1738686647491,-500.0,9.881e-05,2]
[351652229,1738686647500,-500.0,9.881e-05,2]
[351652230,1738686647511,-500.0,9.881e-05,2]
[351652231,1738686647520,-500.0,9.881e-05,2]
[351652232,1738686647529,-500.0,9.881e-05,2]
[351652233,1738686647548,-500.0,9.881e-05,2]
[351652234,1738686647560,-500.0,9.881e-05,2]
[351652235,1738686647570,-500.0,9.881e-05,2]
[351652236,1738686647580,-500.0,9.881e-05,2]
[351652237,1738686647825,-500.0,9.881e-05,2]
[351652238,1738686647834,-500.0,9.881e-05,2]
[351652239,1738686647844,-500.0,9.881e-05,2]
[351652240,1738686647854,-500.0,9.881e-05,2]
[351652241,1738686647863,-500.0,9.881e-05,2]
[351652242,1738686647873,-500.0,9.881e-05,2]
[351652243,1738686647882,-500.0,9.881e-05,2]
[351652244,1738686647891,-500.0,9.881e-05,2]
[351652245,1738686647901,-500.0,9.882e-05,2]
[351652246,1738686647911,-500.0,9.882e-05,2]
[351652247,1738686647920,-306.81169578,9.918e-05,2]
[351652248,1738686647930,-500.0,9.972e-05,2]
[351652249,1738686647939,-179.9421696,9.972e-05,2]
[351652250,1738686647949,-500.0,9.972e-05,2]
[351652251,1738686647959,-11971.19496354,9.992e-05,2]
[351652252,1738686647968,-85986.19420752,0.0001,2]
[351652253,1738686647982,-17536.78146953,0.0001,2]
[351652254,1738686648014,-1539.63461885,0.0001,2]
[351652255,1738686648028,-1683.58183326,0.0001,2]
[351652256,1738686648041,-508.52999999,0.0001,2]
[351652259,1738686991458,150.0,0.00018796,120]
[351652260,1738687170769,150.0,0.00018874,120]
[351652267,1738687832069,-1360.07,8.219e-05,2]
[351652268,1738687832079,-1000.0,8.453e-05,2]
[351652269,1738687832089,-1956.80403063,8.745e-05,2]
[351652270,1738687832098,-1956.80403063,8.751e-05,2]
[351652271,1738687832107,-1956.80403063,8.785e-05,2]
[351652272,1738687832117,-1543.47779716,8.797e-05,2]
[351652273,1738687832191,-413.32623347,8.797e-05,2]
[351652274,1738687832201,-1844.5748,8.836e-05,2]
[351652275,1738687832211,-839.59896703,8.836e-05,2]
[351652276,1738687832224,-1990.29909972,8.836e-05,2]
[351652277,1738687832283,-19.57543325,8.836e-05,2]
[351652278,1738687832292,-725.16885882,8.836e-05,2]
[351652279,1738687832302,-154.92,9.042e-05,2]
[351652280,1738687832311,-150.0,9.479e-05,2]
[351652281,1738687832320,-1000.0,9.509e-05,2]
[351652282,1738687832330,-625.585,9.56e-05,2]
[351652283,1738687832339,-150.0,9.56e-05,2]
[351652284,1738687832349,-513.02341903,9.561e-05,2]
[351652285,1738687832359,-500.0,9.561e-05,2]
[351652286,1738687832368,-500.0,9.561e-05,2]
[351652287,1738687832377,-500.0,9.561e-05,2]
[351652288,1738687832387,-500.0,9.561e-05,2]
[351652289,1738687832396,-500.0,9.561e-05,2]
[351652290,1738687832405,-500.0,9.561e-05,2]
[351652291,1738687832415,-500.0,9.561e-05,2]
[351652292,1738687832424,-500.0,9.561e-05,2]
[351652293,1738687832434,-500.0,9.561e-05,2]
[351652294,1738687832448,-500.0,9.561e-05,2]
[351652295,1738687832457,-500.0,9.561e-05,2]
[351652296,1738687832467,-500.0,9.561e-05,2]
[351652297,1738687832476,-500.0,9.561e-05,2]
[351652298,1738687832485,-500.0,9.561e-05,2]
[351652299,1738687832494,-356.81965519,9.561e-05,2]
[351652300,1738687832503,-500.0,9.561e-05,2]
[351652301,1738687832514,-500.0,9.561e-05,2]
[351652302,1738687832523,-517.09223173,9.561e-05,2]
[351652303,1738687832532,-500.0,9.561e-05,2]
[351652304,1738687832541,-500.0,9.561e-05,2]
[351652305,1738687832550,-500.0,9.561e-05,2]
[351652307,1738687832559,-500.0,9.561e-05,2]
[351652308,1738687832569,-500.0,9.561e-05,2]
[351652309,1738687832578,-500.0,9.561e-05,2]
[351652310,1738687832587,-500.0,9.561e-05,2]
[351652311,1738687832596,-500.0,9.561e-05,2]
[351652312,1738687832606,-500.0,9.561e-05,2]
[351652313,1738687832615,-500.0,9.561e-05,2]
[351652314,1738687832624,-500.0,9.561e-05,2]
[351652315,1738687832633,-500.0,9.561e-05,2]
[351652316,1738687832643,-500.0,9.561e-05,2]
[351652317,1738687832652,-500.0,9.561e-05,2]
[351652318,1738687832662,-500.0,9.561e-05,2]
[351652319,1738687832671,-375.00924363,9.561e-05,2]
[351652320,1738687832681,-500.0,9.561e-05,2]
[351652321,1738687832690,-500.0,9.561e-05,2]
[351652322,1738687832699,-500.0,9.561e-05,2]
[351652323,1738687832709,-500.0,9.561e-05,2]
[351652324,1738687832719,-500.0,9.561e-05,2]
[351652325,1738687832728,-500.0,9.561e-05,2]
[351652326,1738687832737,-500.0,9.561e-05,2]
[351652327,1738687832747,-500.0,9.561e-05,2]
[351652328,1738687832989,-500.0,9.561e-05,2]
[351652329,1738687833011,-500.0,9.561e-05,2]
[351652330,1738687833034,-500.0,9.561e-05,2]
[351652331,1738687833055,-500.0,9.561e-05,2]
[351652332,1738687833077,-500.0,9.561e-05,2]
[351652333,1738687833099,-500.0,9.561e-05,2]
[351652334,1738687833119,-500.0,9.561e-05,2]
[351652335,1738687833140,-500.0,9.561e-05,2]
[351652336,1738687833161,-589.03,9.561e-05,2]
[351652337,1738687833183,-500.0,9.561e-05,2]
[351652338,1738687833204,-253.00039542,9.561e-05,2]
[351652339,1738687833226,-500.0,9.561e-05,2]
[351652340,1738687833245,-500.0,9.561e-05,2]
[351652341,1738687833257,-500.0,9.561e-05,2]
[351652342,1738687833268,-500.0,9.561e-05,2]